Department Family,Entity,Date Paid,Expense Type,Expenses Area,Supplier Name,Transaction Reference,Total,VAT Registration Number,Vlookup
Department of Health,Imperial College Healthcare NHS Trust,01/01/2024,Rates,Estates Directorate,City Of Westminster,4942490,197372,Optional requirement only,0
Department of Health,Imperial College Healthcare NHS Trust,01/01/2024,Rates,Estates Directorate,London Borough Hammersmith & Fulham,4941803,165363,Optional requirement only,0
Department of Health,Imperial College Healthcare NHS Trust,01/01/2024,Rates,Estates Directorate,London Borough Hammersmith & Fulham,4942491,185313,Optional requirement only,0
Department of Health,Imperial College Healthcare NHS Trust,01/02/2024,Blood Products,Pathology,Nhs Blood And Transplant,4939768,69636.14,Optional requirement only,0
Department of Health,Imperial College Healthcare NHS Trust,01/02/2024,Consultancy Fees,"Communications, Engagement And Experience",Imperial College London,4921155,36860,Optional requirement only,0
Department of Health,Imperial College Healthcare NHS Trust,01/02/2024,Consultancy Fees,Finance Directorate,Lancashire Teaching Hospitals Nhs Ft,4933013,28496,Optional requirement only,0
Department of Health,Imperial College Healthcare NHS Trust,01/02/2024,Cy Auc -Addns-Bd Purchased,Capital Summary,Imaging Matters,4929519,786086.26,Optional requirement only,0
Department of Health,Imperial College Healthcare NHS Trust,01/02/2024,Cy Auc -Addns- Prof Fee)-Purch,Capital Summary,Pa Consulting Services Ltd,4913452,128344.8,Optional requirement only,0
Department of Health,Imperial College Healthcare NHS Trust,01/02/2024,Dialysers,Div Of Med & Integrated Care,Baxter Healthcare Ltd,4909856,29336.6,Optional requirement only,0
Department of Health,Imperial College Healthcare NHS Trust,01/02/2024,Dialysers,Div Of Med & Integrated Care,Baxter Healthcare Ltd,4909857,188155.11,Optional requirement only,0
Department of Health,Imperial College Healthcare NHS Trust,01/02/2024,Dialysers,Div Of Med & Integrated Care,Baxter Healthcare Ltd,4909859,47929.6,Optional requirement only,0
Department of Health,Imperial College Healthcare NHS Trust,01/02/2024,Dist Award - Local Cea,Div Of Med & Integrated Care,Imperial College London,4945313,27953.11,Optional requirement only,0
Department of Health,Imperial College Healthcare NHS Trust,01/02/2024,Dist Award - Nat Cea,Div Of Med & Integrated Care,Imperial College London,4945313,71381.9,Optional requirement only,0
Department of Health,Imperial College Healthcare NHS Trust,01/02/2024,Dist Award - Nat Cea,"Div Of Surg, Cardiov & Cancer",Imperial College London,4945313,55067.46,Optional requirement only,0
Department of Health,Imperial College Healthcare NHS Trust,01/02/2024,Dist Award - Nat Cea,Div Of Women Cardiac Clin Sup & Sexual Health Serv,Imperial College London,4945313,34544.52,Optional requirement only,0
Department of Health,Imperial College Healthcare NHS Trust,01/02/2024,Drugs Pbr Excluded,"Div Of Surg, Cardiov & Cancer",Healthcare At Home Ltd,4941923,37649.7,Optional requirement only,0
Department of Health,Imperial College Healthcare NHS Trust,01/02/2024,Electricity,Estates Directorate,Edf Energy Customer Plc,4944129,139476.34,Optional requirement only,0
Department of Health,Imperial College Healthcare NHS Trust,01/02/2024,Electricity,Estates Directorate,Edf Energy Customer Plc,4944130,33378.51,Optional requirement only,0
Department of Health,Imperial College Healthcare NHS Trust,01/02/2024,Electricity,Estates Directorate,Edf Energy Customer Plc,4944131,57886.14,Optional requirement only,0
Department of Health,Imperial College Healthcare NHS Trust,01/02/2024,Electricity,Estates Directorate,Edf Energy Customer Plc,4944133,46238.81,Optional requirement only,0
Department of Health,Imperial College Healthcare NHS Trust,01/02/2024,Electricity,Estates Directorate,Edf Energy Customer Plc,4944136,324000.16,Optional requirement only,0
Department of Health,Imperial College Healthcare NHS Trust,01/02/2024,Electricity,Estates Directorate,Edf Energy Customer Plc,4944142,579455.14,Optional requirement only,0
Department of Health,Imperial College Healthcare NHS Trust,01/02/2024,Gas,Estates Directorate,Total Gas & Power Ltd,4945590,212164.54,Optional requirement only,0
Department of Health,Imperial College Healthcare NHS Trust,01/02/2024,Gas,Estates Directorate,Total Gas & Power Ltd,4945591,142214.18,Optional requirement only,0
Department of Health,Imperial College Healthcare NHS Trust,01/02/2024,Gas,Estates Directorate,Total Gas & Power Ltd,4945592,315428.9,Optional requirement only,0
Department of Health,Imperial College Healthcare NHS Trust,01/02/2024,Hopper Service,Estates Directorate,Dhl Supply Chain  (Former Excel),4908461,40329.65,Optional requirement only,0
Department of Health,Imperial College Healthcare NHS Trust,01/02/2024,Hopper Service,Estates Directorate,Dhl Supply Chain  (Former Excel),4927766,40329.65,Optional requirement only,0
Department of Health,Imperial College Healthcare NHS Trust,01/02/2024,Ic Pay Recharge In: Med,Div Of Med & Integrated Care,Imperial College London,4945313,160935.3,Optional requirement only,0
Department of Health,Imperial College Healthcare NHS Trust,01/02/2024,Ic Pay Recharge In: Med,"Div Of Surg, Cardiov & Cancer",Imperial College London,4945312,49417.52,Optional requirement only,0
Department of Health,Imperial College Healthcare NHS Trust,01/02/2024,Ic Pay Recharge In: Med,"Div Of Surg, Cardiov & Cancer",Imperial College London,4945313,428837.55,Optional requirement only,0
Department of Health,Imperial College Healthcare NHS Trust,01/02/2024,Ic Pay Recharge In: Med,Div Of Women Cardiac Clin Sup & Sexual Health Serv,Imperial College London,4945313,203478.25,Optional requirement only,0
Department of Health,Imperial College Healthcare NHS Trust,01/02/2024,Ic Pay Recharge In: Med,Pathology,Imperial College London,4945320,29582.2,Optional requirement only,0
Department of Health,Imperial College Healthcare NHS Trust,01/02/2024,Jac - Stock,Balance Sheet St Marys,Alloga Uk Ltd,4942798,47424,Optional requirement only,Stock
Department of Health,Imperial College Healthcare NHS Trust,01/02/2024,Jac - Stock,Balance Sheet St Marys,Alloga Uk Ltd,4942799,38500,Optional requirement only,Stock
Department of Health,Imperial College Healthcare NHS Trust,01/02/2024,Jac - Stock,Balance Sheet St Marys,Alloga Uk Ltd,4944770,48816,Optional requirement only,Stock
Department of Health,Imperial College Healthcare NHS Trust,01/02/2024,Jac - Stock,Balance Sheet St Marys,Alloga Uk Ltd,4944776,97632,Optional requirement only,Stock
Department of Health,Imperial College Healthcare NHS Trust,01/02/2024,Jac - Stock,Balance Sheet St Marys,Alloga Uk Ltd,4945695,53900,Optional requirement only,Stock
Department of Health,Imperial College Healthcare NHS Trust,01/02/2024,Jac - Stock,Balance Sheet St Marys,Bayer Plc,4945324,105844.9,Optional requirement only,Stock
Department of Health,Imperial College Healthcare NHS Trust,01/02/2024,Jac - Stock,Balance Sheet St Marys,Bms Pharmaceuticals Ltd (0034),4945363,33169.44,Optional requirement only,Stock
Department of Health,Imperial College Healthcare NHS Trust,01/02/2024,Jac - Stock,Balance Sheet St Marys,Gilead Sciences Ltd,4944201,166587,Optional requirement only,Stock
Department of Health,Imperial College Healthcare NHS Trust,01/02/2024,Jac - Stock,Balance Sheet St Marys,Lloyds Pharmacy Clinical Homecare,4942765,34034.86,Optional requirement only,Stock
Department of Health,Imperial College Healthcare NHS Trust,01/02/2024,Jac - Stock,Balance Sheet St Marys,Qualasept Ltd,4944204,55803.84,Optional requirement only,Stock
Department of Health,Imperial College Healthcare NHS Trust,01/02/2024,Jac - Stock,Balance Sheet St Marys,Qualasept Ltd,4944208,82368.06,Optional requirement only,Stock
Department of Health,Imperial College Healthcare NHS Trust,01/02/2024,Jac - Stock,Balance Sheet St Marys,Roche Products Ltd,4944312,36499.54,Optional requirement only,Stock
Department of Health,Imperial College Healthcare NHS Trust,01/02/2024,Jac - Stock,Balance Sheet St Marys,Roche Products Ltd,4944793,86362.8,Optional requirement only,Stock
Department of Health,Imperial College Healthcare NHS Trust,01/02/2024,Med & Surg Equip General,Div Of Med & Integrated Care,Baxter Healthcare Ltd,4857525,173390,Optional requirement only,0
Department of Health,Imperial College Healthcare NHS Trust,01/02/2024,Other Research Exp - Pay,Rd Medical Directorate,London Borough Of Hammersmith/Fulham,4923620,66672.17,Optional requirement only,0
Department of Health,Imperial College Healthcare NHS Trust,01/02/2024,Patients Appl: Purchase,"Div Of Surg, Cardiov & Cancer",Blatchford Limited,4941949,49430.51,Optional requirement only,0
Department of Health,Imperial College Healthcare NHS Trust,01/02/2024,Purch Hcare Independent Sector,Div Of Med & Integrated Care,London Central & West Unscheduled Care Collab,4944440,390290.58,Optional requirement only,0
Department of Health,Imperial College Healthcare NHS Trust,01/02/2024,Services Received - Nhsts,Div Of Med & Integrated Care,Central London Community Healthcare Nhs Trust,4942268,43117.41,Optional requirement only,0
Department of Health,Imperial College Healthcare NHS Trust,01/02/2024,Services Received - Nhsts,Div Of Med & Integrated Care,London North West Univ Healthcare Nhs Trust,4884209,108528.3,Optional requirement only,0
Department of Health,Imperial College Healthcare NHS Trust,01/02/2024,Srvcsrecd-Other Nhs,"Div Of Surg, Cardiov & Cancer",Royal Brompton And Harefield Nhs Ft,4934728,238301.05,Optional requirement only,0
Department of Health,Imperial College Healthcare NHS Trust,01/02/2024,Supplies Issues Recharges,Ichnt Balance Sheet,Supply Chain Coordination Ltd (Sccl) ( 101),4919989,169555,Optional requirement only,Stock
Department of Health,Imperial College Healthcare NHS Trust,01/02/2024,Supplies Issues Recharges,Ichnt Balance Sheet,Supply Chain Coordination Ltd (Sccl) ( 101),4919990,140691.6,Optional requirement only,Stock
Department of Health,Imperial College Healthcare NHS Trust,01/02/2024,Supplies Issues Recharges,Ichnt Balance Sheet,Supply Chain Coordination Ltd (Sccl) ( 101),4919991,108114.01,Optional requirement only,Stock
Department of Health,Imperial College Healthcare NHS Trust,01/02/2024,Supplies Issues Recharges,Ichnt Balance Sheet,Supply Chain Coordination Ltd (Sccl) ( 101),4919992,54768.2,Optional requirement only,Stock
Department of Health,Imperial College Healthcare NHS Trust,01/02/2024,Supplies Issues Recharges,Ichnt Balance Sheet,Supply Chain Coordination Ltd (Sccl) ( 101),4919993,142074.23,Optional requirement only,Stock
Department of Health,Imperial College Healthcare NHS Trust,01/02/2024,Supplies Issues Recharges,Ichnt Balance Sheet,Supply Chain Coordination Ltd (Sccl) ( 101),4919994,161408.39,Optional requirement only,Stock
Department of Health,Imperial College Healthcare NHS Trust,01/02/2024,Supplies Issues Recharges,Ichnt Balance Sheet,Supply Chain Coordination Ltd (Sccl) ( 101),4923825,120166.08,Optional requirement only,Stock
Department of Health,Imperial College Healthcare NHS Trust,01/02/2024,Supplies Issues Recharges,Ichnt Balance Sheet,Supply Chain Coordination Ltd (Sccl) ( 101),4923826,140431.08,Optional requirement only,Stock
Department of Health,Imperial College Healthcare NHS Trust,01/02/2024,Supplies Issues Recharges,Ichnt Balance Sheet,Supply Chain Coordination Ltd (Sccl) ( 101),4923827,110315.43,Optional requirement only,Stock
Department of Health,Imperial College Healthcare NHS Trust,01/02/2024,Supplies Issues Recharges,Ichnt Balance Sheet,Supply Chain Coordination Ltd (Sccl) ( 101),4923828,125177.3,Optional requirement only,Stock
Department of Health,Imperial College Healthcare NHS Trust,01/02/2024,Supplies Issues Recharges,Ichnt Balance Sheet,Supply Chain Coordination Ltd (Sccl) ( 101),4923829,67532.56,Optional requirement only,Stock
Department of Health,Imperial College Healthcare NHS Trust,01/02/2024,Supplies Issues Recharges,Ichnt Balance Sheet,Supply Chain Coordination Ltd (Sccl) ( 101),4923830,181952.65,Optional requirement only,Stock
Department of Health,Imperial College Healthcare NHS Trust,01/02/2024,Supplies Issues Recharges,Ichnt Balance Sheet,Supply Chain Coordination Ltd (Sccl) ( 101),4926254,134334.13,Optional requirement only,Stock
Department of Health,Imperial College Healthcare NHS Trust,01/02/2024,Supplies Issues Recharges,Ichnt Balance Sheet,Supply Chain Coordination Ltd (Sccl) ( 101),4926255,205673.66,Optional requirement only,Stock
Department of Health,Imperial College Healthcare NHS Trust,01/02/2024,Supplies Issues Recharges,Ichnt Balance Sheet,Supply Chain Coordination Ltd (Sccl) ( 101),4926257,145664.54,Optional requirement only,Stock
Department of Health,Imperial College Healthcare NHS Trust,01/02/2024,Supplies Issues Recharges,Ichnt Balance Sheet,Supply Chain Coordination Ltd (Sccl) ( 101),4926258,114434.33,Optional requirement only,Stock
Department of Health,Imperial College Healthcare NHS Trust,01/02/2024,Supplies Issues Recharges,Ichnt Balance Sheet,Supply Chain Coordination Ltd (Sccl) ( 101),4926273,129680.48,Optional requirement only,Stock
Department of Health,Imperial College Healthcare NHS Trust,01/02/2024,Supplies Issues Recharges,Ichnt Balance Sheet,Supply Chain Coordination Ltd (Sccl) ( 101),4926278,54183.3,Optional requirement only,Stock
Department of Health,Imperial College Healthcare NHS Trust,01/02/2024,Supplies Issues Recharges,Ichnt Balance Sheet,Supply Chain Coordination Ltd (Sccl) ( 101),4927954,104229.65,Optional requirement only,Stock
Department of Health,Imperial College Healthcare NHS Trust,01/02/2024,Supplies Issues Recharges,Ichnt Balance Sheet,Supply Chain Coordination Ltd (Sccl) ( 101),4927955,102037.46,Optional requirement only,Stock
Department of Health,Imperial College Healthcare NHS Trust,01/02/2024,Supplies Issues Recharges,Ichnt Balance Sheet,Supply Chain Coordination Ltd (Sccl) ( 101),4927956,166168.24,Optional requirement only,Stock
Department of Health,Imperial College Healthcare NHS Trust,01/02/2024,Supplies Issues Recharges,Ichnt Balance Sheet,Supply Chain Coordination Ltd (Sccl) ( 101),4927958,150275.36,Optional requirement only,Stock
Department of Health,Imperial College Healthcare NHS Trust,01/02/2024,Supplies Issues Recharges,Ichnt Balance Sheet,Supply Chain Coordination Ltd (Sccl) ( 101),4927959,47546.28,Optional requirement only,Stock
Department of Health,Imperial College Healthcare NHS Trust,01/02/2024,Supplies Issues Recharges,Ichnt Balance Sheet,Supply Chain Coordination Ltd (Sccl) ( 101),4927961,141696.38,Optional requirement only,Stock
Department of Health,Imperial College Healthcare NHS Trust,01/02/2024,Supplies Issues Recharges,Ichnt Balance Sheet,Supply Chain Coordination Ltd (Sccl) ( 101),4933449,158835.02,Optional requirement only,Stock
Department of Health,Imperial College Healthcare NHS Trust,01/02/2024,Supplies Issues Recharges,Ichnt Balance Sheet,Supply Chain Coordination Ltd (Sccl) ( 101),4933450,45298.33,Optional requirement only,Stock
Department of Health,Imperial College Healthcare NHS Trust,01/02/2024,Supplies Issues Recharges,Ichnt Balance Sheet,Supply Chain Coordination Ltd (Sccl) ( 101),4933451,120251.61,Optional requirement only,Stock
Department of Health,Imperial College Healthcare NHS Trust,01/02/2024,Supplies Issues Recharges,Ichnt Balance Sheet,Supply Chain Coordination Ltd (Sccl) ( 101),4933452,152062.03,Optional requirement only,Stock
Department of Health,Imperial College Healthcare NHS Trust,01/02/2024,Supplies Issues Recharges,Ichnt Balance Sheet,Supply Chain Coordination Ltd (Sccl) ( 101),4933453,147021.72,Optional requirement only,Stock
Department of Health,Imperial College Healthcare NHS Trust,01/02/2024,Supplies Issues Recharges,Ichnt Balance Sheet,Supply Chain Coordination Ltd (Sccl) ( 101),4933454,118653.41,Optional requirement only,Stock
Department of Health,Imperial College Healthcare NHS Trust,01/02/2024,Supplies Issues Recharges,Ichnt Balance Sheet,Supply Chain Coordination Ltd (Sccl) ( 101),4939968,192198.88,Optional requirement only,Stock
Department of Health,Imperial College Healthcare NHS Trust,01/02/2024,Supplies Issues Recharges,Ichnt Balance Sheet,Supply Chain Coordination Ltd (Sccl) ( 101),4939969,139670.96,Optional requirement only,Stock
Department of Health,Imperial College Healthcare NHS Trust,01/02/2024,Supplies Issues Recharges,Ichnt Balance Sheet,Supply Chain Coordination Ltd (Sccl) ( 101),4939970,47100.09,Optional requirement only,Stock
Department of Health,Imperial College Healthcare NHS Trust,01/02/2024,Supplies Issues Recharges,Ichnt Balance Sheet,Supply Chain Coordination Ltd (Sccl) ( 101),4939971,174979.83,Optional requirement only,Stock
Department of Health,Imperial College Healthcare NHS Trust,01/02/2024,Supplies Issues Recharges,Ichnt Balance Sheet,Supply Chain Coordination Ltd (Sccl) ( 101),4939972,104052.1,Optional requirement only,Stock
Department of Health,Imperial College Healthcare NHS Trust,01/02/2024,Supplies Issues Recharges,Ichnt Balance Sheet,Supply Chain Coordination Ltd (Sccl) ( 101),4939973,145429.01,Optional requirement only,Stock
Department of Health,Imperial College Healthcare NHS Trust,01/04/2024,Books  Journals & Subscr,Office Of Chief Executive,Imperial College London,4943026,147768.4,Optional requirement only,0
Department of Health,Imperial College Healthcare NHS Trust,01/04/2024,Clinical Managed Service Contr,Div Of Women Cardiac Clin Sup & Sexual Health Serv,Medtronic Ltd,4920414,2155899.36,Optional requirement only,0
Department of Health,Imperial College Healthcare NHS Trust,01/04/2024,Computer Software/License,Div Of Women Cardiac Clin Sup & Sexual Health Serv,Philips Electronics Uk Ltd,4943454,296012.1,Optional requirement only,0
Department of Health,Imperial College Healthcare NHS Trust,01/04/2024,Computer Software/License,Information & Comms Technology,Oracle Corporation Uk Ltd,4926715,120000,Optional requirement only,0
Department of Health,Imperial College Healthcare NHS Trust,01/04/2024,Computer Software/License,Medical Director Summary,Datix Ltd,4944146,27422.52,Optional requirement only,0
Department of Health,Imperial College Healthcare NHS Trust,01/04/2024,Cy Auc -Addns-Bd Purchased,Capital Summary,Quinn London Limited,4940211,139308,Optional requirement only,0
Department of Health,Imperial College Healthcare NHS Trust,01/04/2024,Cy Auc -Addns-Bd Purchased,Capital Summary,Siemens Healthcare Ltd,4944090,239071.67,Optional requirement only,0
Department of Health,Imperial College Healthcare NHS Trust,01/04/2024,Cy Auc -Addns- Prof Fee)-Purch,Capital Summary,Couch Perry Wilkes Llp,4939983,59808,Optional requirement only,0
Department of Health,Imperial College Healthcare NHS Trust,01/04/2024,Cy Auc -Addns- Prof Fee)-Purch,Capital Summary,Pa Consulting Services Ltd,4912070,47616,Optional requirement only,0
Department of Health,Imperial College Healthcare NHS Trust,01/04/2024,Items Pending Investigation,Ichnt Balance Sheet,Vision Office Automation Ltd,4927540,151920.98,Optional requirement only,0
Department of Health,Imperial College Healthcare NHS Trust,01/04/2024,Jac - Stock,Balance Sheet St Marys,Baxter Healthcare Ltd,4947000,34352.16,Optional requirement only,Stock
Department of Health,Imperial College Healthcare NHS Trust,01/04/2024,Jac - Stock,Balance Sheet St Marys,Qualasept Ltd,4947084,54932.04,Optional requirement only,Stock
Department of Health,Imperial College Healthcare NHS Trust,01/04/2024,Lease Charges,Information & Comms Technology,Xerox (Uk) Ltd,4942345,163382.15,Optional requirement only,0
Department of Health,Imperial College Healthcare NHS Trust,01/04/2024,Med & Surg Equip Leases,Estates Directorate,Arjo Uk Ltd,4941369,115657.7,Optional requirement only,0
Department of Health,Imperial College Healthcare NHS Trust,01/04/2024,Med & Surg Equip Leases,Estates Directorate,Arjo Uk Ltd,4944174,115657.7,Optional requirement only,0
Department of Health,Imperial College Healthcare NHS Trust,01/04/2024,Med & Surg Maint Contract,"Div Of Surg, Cardiov & Cancer",Medical Imaging Systems Ltd,4940656,56400,Optional requirement only,0
Department of Health,Imperial College Healthcare NHS Trust,01/04/2024,Miscellaneous Expenditure,Human Resources,National Westminster Bank Plc,4947297,25000,Optional requirement only,0
Department of Health,Imperial College Healthcare NHS Trust,01/04/2024,Nhs Pay Recharge In: Med,Rdwomen And Children Division,London North West Univ Healthcare Nhs Trust,4940634,25000,Optional requirement only,0
Department of Health,Imperial College Healthcare NHS Trust,01/04/2024,Patients Appl: Purchase,"Div Of Surg, Cardiov & Cancer",Blatchford Limited,4945602,34254.48,Optional requirement only,0
Department of Health,Imperial College Healthcare NHS Trust,01/04/2024,Printing Costs,Information & Comms Technology,Vision Office Automation Ltd,4943778,150500.32,Optional requirement only,0
Department of Health,Imperial College Healthcare NHS Trust,01/04/2024,Taxi & Other Vehicle Hire,Estates Directorate,Dhl Supply Chain  (Former Excel),4941778,70024.86,Optional requirement only,0
Department of Health,Imperial College Healthcare NHS Trust,01/09/2024,Agency Nursing: Qualified,Div Of Med & Integrated Care,Reed Specialist Recruitment Ltd,4947856,51260.87,Optional requirement only,0
Department of Health,Imperial College Healthcare NHS Trust,01/09/2024,Agency Nursing: Qualified,Div Of Med & Integrated Care,Reed Specialist Recruitment Ltd,4948127,62001.59,Optional requirement only,0
Department of Health,Imperial College Healthcare NHS Trust,01/09/2024,Agency Nursing: Qualified,"Div Of Surg, Cardiov & Cancer",Reed Specialist Recruitment Ltd,4947856,45316.58,Optional requirement only,0
Department of Health,Imperial College Healthcare NHS Trust,01/09/2024,Agency Nursing: Qualified,"Div Of Surg, Cardiov & Cancer",Reed Specialist Recruitment Ltd,4948127,40625.59,Optional requirement only,0
Department of Health,Imperial College Healthcare NHS Trust,01/09/2024,Course Fees,Human Resources,University Of West London,4949723,35303.98,Optional requirement only,0
Department of Health,Imperial College Healthcare NHS Trust,01/09/2024,Cy Auc -Addns-Bd Purchased,Capital Summary,Imaging Matters,4945124,474913.26,Optional requirement only,0
Department of Health,Imperial College Healthcare NHS Trust,01/09/2024,Cy Auc -Addns- F&F Purchased,Capital Summary,Bhc Healthcare Ltd,4943387,49930.18,Optional requirement only,0
Department of Health,Imperial College Healthcare NHS Trust,01/09/2024,Dialysers,Div Of Med & Integrated Care,Baxter Healthcare Ltd,4909855,48499.6,Optional requirement only,0
Department of Health,Imperial College Healthcare NHS Trust,01/09/2024,Ext Contract - Patient Travel,Estates Directorate,Falck Uk Ambulance Service Limited,4947417,2087041.12,Optional requirement only,0
Department of Health,Imperial College Healthcare NHS Trust,01/09/2024,Jac - Stock,Balance Sheet St Marys,Alloga Uk Ltd,4947499,48816,Optional requirement only,Stock
Department of Health,Imperial College Healthcare NHS Trust,01/09/2024,Jac - Stock,Balance Sheet St Marys,Baxter Healthcare Ltd,4949016,44365.38,Optional requirement only,Stock
Department of Health,Imperial College Healthcare NHS Trust,01/09/2024,Jac - Stock,Balance Sheet St Marys,Csl Behring Uk Ltd,4948046,130501.8,Optional requirement only,Stock
Department of Health,Imperial College Healthcare NHS Trust,01/09/2024,Jac - Stock,Balance Sheet St Marys,Csl Behring Uk Ltd,4948047,65909.95,Optional requirement only,Stock
Department of Health,Imperial College Healthcare NHS Trust,01/09/2024,Jac - Stock,Balance Sheet St Marys,Csl Behring Uk Ltd,4948048,102160.5,Optional requirement only,Stock
Department of Health,Imperial College Healthcare NHS Trust,01/09/2024,Jac - Stock,Balance Sheet St Marys,Roche Products Ltd,4947558,49704,Optional requirement only,Stock
Department of Health,Imperial College Healthcare NHS Trust,01/09/2024,Jac - Stock,Balance Sheet St Marys,Roche Products Ltd,4949064,41952,Optional requirement only,Stock
Department of Health,Imperial College Healthcare NHS Trust,01/09/2024,Other Research Exp - Pay,"Div Of Surg, Cardiov & Cancer",Imperial College London,4903645,42020.75,Optional requirement only,0
Department of Health,Imperial College Healthcare NHS Trust,01/09/2024,Pest Control,Estates Directorate,Rentokil Pest Control,4946510,36003.76,Optional requirement only,0
Department of Health,Imperial College Healthcare NHS Trust,01/09/2024,Professional Services,Estates Directorate,Knight Security Limited,4949720,32739.7,Optional requirement only,0
Department of Health,Imperial College Healthcare NHS Trust,01/09/2024,Professional Services,Information & Comms Technology,Dnj Consultancy Ltd,4949283,228219,Optional requirement only,0
Department of Health,Imperial College Healthcare NHS Trust,01/09/2024,Services Received - Nhsts,Div Of Med & Integrated Care,West Hertfordshire Hospitals Nhs Trust,4945082,26113.86,Optional requirement only,0
Department of Health,Imperial College Healthcare NHS Trust,01/09/2024,Services Received - Nhsts,Div Of Women Cardiac Clin Sup & Sexual Health Serv,Bham Womens & Childrens Nhs Ft,4340490,28512.35,Optional requirement only,0
Department of Health,Imperial College Healthcare NHS Trust,01/09/2024,Services Received - Nhsts,Div Of Women Cardiac Clin Sup & Sexual Health Serv,Bham Womens & Childrens Nhs Ft,4340491,27767.25,Optional requirement only,0
Department of Health,Imperial College Healthcare NHS Trust,01/11/2024,Agency Consultant,Pathology,Reed Specialist Recruitment Ltd,61078,30643.83,Optional requirement only,0
Department of Health,Imperial College Healthcare NHS Trust,01/11/2024,Agency Nursing: Qualified,Div Of Med & Integrated Care,Reed Specialist Recruitment Ltd,4950592,54056.79,Optional requirement only,0
Department of Health,Imperial College Healthcare NHS Trust,01/11/2024,Blood Products,Pathology,Nhs Blood And Transplant,4939769,308113.02,Optional requirement only,0
Department of Health,Imperial College Healthcare NHS Trust,01/11/2024,Blood Products,Pathology,Nhs Blood And Transplant,4939773,177399.6,Optional requirement only,0
Department of Health,Imperial College Healthcare NHS Trust,01/11/2024,Dialysers,Div Of Med & Integrated Care,Baxter Healthcare Ltd,4928057,29605.6,Optional requirement only,0
Department of Health,Imperial College Healthcare NHS Trust,01/11/2024,Dialysers,Div Of Med & Integrated Care,Baxter Healthcare Ltd,4930141,46584,Optional requirement only,0
Department of Health,Imperial College Healthcare NHS Trust,01/11/2024,Ext Contr Laundry,Estates Directorate,Synergy Health Managed Services Ltd,4951041,60607.36,Optional requirement only,0
Department of Health,Imperial College Healthcare NHS Trust,01/11/2024,Ext Contr Laundry,Estates Directorate,Synergy Health Managed Services Ltd,4951043,70629.44,Optional requirement only,0
Department of Health,Imperial College Healthcare NHS Trust,01/11/2024,Ext Contr Laundry,Estates Directorate,Synergy Health Managed Services Ltd,4951044,90989.54,Optional requirement only,0
Department of Health,Imperial College Healthcare NHS Trust,01/11/2024,Ext Contr Laundry,Estates Directorate,Synergy Health Managed Services Ltd,4951045,70358.18,Optional requirement only,0
Department of Health,Imperial College Healthcare NHS Trust,01/11/2024,Jac - Stock,Balance Sheet St Marys,Alloga Uk Ltd,4951609,81360,Optional requirement only,Stock
Department of Health,Imperial College Healthcare NHS Trust,01/11/2024,Jac - Stock,Balance Sheet St Marys,Bayer Plc,4951571,34217.1,Optional requirement only,Stock
Department of Health,Imperial College Healthcare NHS Trust,01/11/2024,Jac - Stock,Balance Sheet St Marys,Gilead Sciences Ltd,4951622,166587,Optional requirement only,Stock
Department of Health,Imperial College Healthcare NHS Trust,01/11/2024,Jac - Stock,Balance Sheet St Marys,Polar Speed Distribution Ltd,4950213,53298,Optional requirement only,Stock
Department of Health,Imperial College Healthcare NHS Trust,01/11/2024,Jac - Stock,Balance Sheet St Marys,Roche Products Ltd,4951766,73320,Optional requirement only,Stock
Department of Health,Imperial College Healthcare NHS Trust,01/11/2024,Med & Prof Fees (Imaging Cons),Ichnt Balance Sheet,Lindo Wing Radiology Llp,4950483,126644.53,Optional requirement only,0
Department of Health,Imperial College Healthcare NHS Trust,01/11/2024,Purch Hcare Independent Sector,Div Of Med & Integrated Care,Mimet House,4923278,71200.6,Optional requirement only,0
Department of Health,Imperial College Healthcare NHS Trust,01/11/2024,Purch Hcare Independent Sector,Div Of Med & Integrated Care,Mimet House,4923282,71200.6,Optional requirement only,0
Department of Health,Imperial College Healthcare NHS Trust,01/11/2024,Season Ticket Cr Abellio,Ichnt Balance Sheet,Abellio Transport Holdings Ltd,4942331,29843.8,Optional requirement only,0
Department of Health,Imperial College Healthcare NHS Trust,01/11/2024,Services Received - Nhsts,Div Of Women Cardiac Clin Sup & Sexual Health Serv,University Hospitals Birmingham Nhs Ft,4886934,86922.14,Optional requirement only,0
Department of Health,Imperial College Healthcare NHS Trust,1/16/2024,Acton Housing Association,Ichnt Balance Sheet,A2dominion Housing Group Ltd,4952184,398981.59,Optional requirement only,Housing Deductions
Department of Health,Imperial College Healthcare NHS Trust,1/16/2024,Computer Software/License,Information & Comms Technology,Oracle Corporation Uk Ltd,4940065,168985.67,Optional requirement only,0
Department of Health,Imperial College Healthcare NHS Trust,1/16/2024,Computer Software/License,Information & Comms Technology,Oracle Corporation Uk Ltd,4941796,62784.86,Optional requirement only,0
Department of Health,Imperial College Healthcare NHS Trust,1/16/2024,Computer Software/License,Information & Comms Technology,Oracle Corporation Uk Ltd,4941807,47088.66,Optional requirement only,0
Department of Health,Imperial College Healthcare NHS Trust,1/16/2024,Computer Software/License,Information & Comms Technology,Oracle Corporation Uk Ltd,4941810,168985.67,Optional requirement only,0
Department of Health,Imperial College Healthcare NHS Trust,1/16/2024,Contr Refuse & Clin Waste,Estates Directorate,Grundon Waste Management Ltd,4949678,36019.51,Optional requirement only,0
Department of Health,Imperial College Healthcare NHS Trust,1/16/2024,Cy Auc -Addns-Bd Purchased,Capital Summary,Cbre Managed Services Ltd,4953102,186997.15,Optional requirement only,0
Department of Health,Imperial College Healthcare NHS Trust,1/16/2024,Cy Auc -Addns- It Eqpt-Addns,Capital Summary,21st Century Av Ltd,4907586,39695.19,Optional requirement only,0
Department of Health,Imperial College Healthcare NHS Trust,1/16/2024,Cy Auc -Addns- P & M-Purchased,Capital Summary,B Braun Avitum Ltd,4947808,71424.12,Optional requirement only,0
Department of Health,Imperial College Healthcare NHS Trust,1/16/2024,Cy Auc -Addns- P & M-Purchased,Capital Summary,B Braun Avitum Ltd,4947809,142848.24,Optional requirement only,0
Department of Health,Imperial College Healthcare NHS Trust,1/16/2024,Jac - Stock,Balance Sheet St Marys,Aah Pharmaceuticals Limited,4952805,39094.25,Optional requirement only,Stock
Department of Health,Imperial College Healthcare NHS Trust,1/16/2024,Jac - Stock,Balance Sheet St Marys,Alloga Uk Ltd,4952118,97632,Optional requirement only,Stock
Department of Health,Imperial College Healthcare NHS Trust,1/16/2024,Jac - Stock,Balance Sheet St Marys,Baxter Healthcare Ltd,4953254,36596.16,Optional requirement only,Stock
Department of Health,Imperial College Healthcare NHS Trust,1/16/2024,Jac - Stock,Balance Sheet St Marys,Gilead Sciences Ltd,4953289,34276.61,Optional requirement only,Stock
Department of Health,Imperial College Healthcare NHS Trust,1/16/2024,Jac - Stock,Balance Sheet St Marys,Qualasept Ltd,4952121,34564.68,Optional requirement only,Stock
Department of Health,Imperial College Healthcare NHS Trust,1/16/2024,Jac - Stock,Balance Sheet St Marys,Roche Products Ltd,4952166,189355.2,Optional requirement only,Stock
Department of Health,Imperial College Healthcare NHS Trust,1/16/2024,Lab Equip Maint / Repairs,Div Of Women Cardiac Clin Sup & Sexual Health Serv,T-Scan Ltd,4943421,59672.53,Optional requirement only,0
Department of Health,Imperial College Healthcare NHS Trust,1/16/2024,Laboratory Equipment,Pathology,Olm Diagnostics Ltd,61295,57288.6,Optional requirement only,0
Department of Health,Imperial College Healthcare NHS Trust,1/16/2024,Med & Surg Equip General,"Div Of Surg, Cardiov & Cancer",Philips Electronics Uk Ltd,4943019,163483.49,Optional requirement only,0
Department of Health,Imperial College Healthcare NHS Trust,1/16/2024,Other Research Exp - Non-Pay,Rd Medical Directorate,West London  Nhs Trust,4952230,80776,Optional requirement only,0
Department of Health,Imperial College Healthcare NHS Trust,1/16/2024,Purch Hcare Independent Sector,Div Of Med & Integrated Care,London Central & West Unscheduled Care Collab,4952176,390290.58,Optional requirement only,0
Department of Health,Imperial College Healthcare NHS Trust,1/16/2024,Purch Hcare Independent Sector,Div Of Med & Integrated Care,Mimet House,4923280,71200.6,Optional requirement only,0
Department of Health,Imperial College Healthcare NHS Trust,1/16/2024,Rent,Div Of Women Cardiac Clin Sup & Sexual Health Serv,Hanwell Health Centre,4950354,64443.38,Optional requirement only,0
Department of Health,Imperial College Healthcare NHS Trust,1/16/2024,Rent,Estates Directorate,Metropolitan Thames Valley,4951911,58223.4,Optional requirement only,0
Department of Health,Imperial College Healthcare NHS Trust,1/16/2024,Staffflow Suspense,Ichnt Balance Sheet,Globe Locums Ltd,4927507,48224.86,Optional requirement only,0
Department of Health,Imperial College Healthcare NHS Trust,1/16/2024,Staffflow Suspense,Ichnt Balance Sheet,Globe Locums Ltd,4949130,47451.73,Optional requirement only,0
Department of Health,Imperial College Healthcare NHS Trust,1/16/2024,Thames Valley Housing Assoc,Ichnt Balance Sheet,Metropolitan Thames Valley,4952185,120429,Optional requirement only,Housing Deductions
Department of Health,Imperial College Healthcare NHS Trust,1/18/2024,Agency Consultant,Pathology,Reed Specialist Recruitment Ltd,61304,54090.74,Optional requirement only,0
Department of Health,Imperial College Healthcare NHS Trust,1/18/2024,Agency Nursing: Qualified,Div Of Med & Integrated Care,Reed Specialist Recruitment Ltd,4954335,38400.54,Optional requirement only,0
Department of Health,Imperial College Healthcare NHS Trust,1/18/2024,Contr Other External,Estates Directorate,Cbre Managed Services Ltd,4952624,1654602.36,Optional requirement only,0
Department of Health,Imperial College Healthcare NHS Trust,1/18/2024,Contr Refuse & Clin Waste,Estates Directorate,Grundon Waste Management Ltd,4949673,40909.81,Optional requirement only,0
Department of Health,Imperial College Healthcare NHS Trust,1/18/2024,Contr Refuse & Clin Waste,Estates Directorate,Grundon Waste Management Ltd,4949674,37926.1,Optional requirement only,0
Department of Health,Imperial College Healthcare NHS Trust,1/18/2024,Course Fees,Nursing Directorate,Buckinghamshire New University,4942071,38910,Optional requirement only,0
Department of Health,Imperial College Healthcare NHS Trust,1/18/2024,Cy Auc -Addns- P & M-Purchased,Capital Summary,B Braun Avitum Ltd,4951915,57139.3,Optional requirement only,0
Department of Health,Imperial College Healthcare NHS Trust,1/18/2024,Cy Auc -Addns- P & M-Purchased,Capital Summary,Philips Electronics Uk Ltd,4912965,130718.94,Optional requirement only,0
Department of Health,Imperial College Healthcare NHS Trust,1/18/2024,Hosting Service Expenses,Nhs Elect,Harvey Walsh Ltd,4954900,60300,Optional requirement only,0
Department of Health,Imperial College Healthcare NHS Trust,1/18/2024,Income Tax Paye,Ichnt Balance Sheet,Hmrc Government Employers Account,4954352,12115814.71,Optional requirement only,0
Department of Health,Imperial College Healthcare NHS Trust,1/18/2024,Income Tax Paye,Ichnt Balance Sheet,Hmrc Government Employers Account,4954353,11908801.23,Optional requirement only,0
Department of Health,Imperial College Healthcare NHS Trust,1/18/2024,Jac - Stock,Balance Sheet St Marys,Janssen-Cilag Ltd,4955262,51528.96,Optional requirement only,Stock
Department of Health,Imperial College Healthcare NHS Trust,1/18/2024,Jac - Stock,Balance Sheet St Marys,Janssen-Cilag Ltd,4955263,46008,Optional requirement only,Stock
Department of Health,Imperial College Healthcare NHS Trust,1/18/2024,Jac - Stock,Balance Sheet St Marys,Qualasept Ltd,4955319,54705.6,Optional requirement only,Stock
Department of Health,Imperial College Healthcare NHS Trust,1/18/2024,Jac - Stock,Balance Sheet St Marys,Roche Products Ltd,4955363,59903.52,Optional requirement only,Stock
Department of Health,Imperial College Healthcare NHS Trust,1/18/2024,Losses & Comps,Central Costs,Environment Agency,4955762,108483.84,Optional requirement only,0
Department of Health,Imperial College Healthcare NHS Trust,1/18/2024,Losses & Comps,Central Costs,Environment Agency,4955767,58465.38,Optional requirement only,0
Department of Health,Imperial College Healthcare NHS Trust,1/18/2024,Losses & Comps,Central Costs,Environment Agency,4955769,129252.2,Optional requirement only,0
Department of Health,Imperial College Healthcare NHS Trust,1/18/2024,Losses & Comps,Central Costs,Environment Agency,4955770,168665.04,Optional requirement only,0
Department of Health,Imperial College Healthcare NHS Trust,1/18/2024,Losses & Comps,Central Costs,Environment Agency,4955776,78728.7,Optional requirement only,0
Department of Health,Imperial College Healthcare NHS Trust,1/18/2024,Losses & Comps,Central Costs,Environment Agency,4955777,93617.92,Optional requirement only,0
Department of Health,Imperial College Healthcare NHS Trust,1/18/2024,Med & Surg Maint Contract,Estates Directorate,Ge Medical Systems Limited,4955608,825976.8,Optional requirement only,0
Department of Health,Imperial College Healthcare NHS Trust,1/18/2024,Other Research Exp - Non-Pay,Rd Medical Directorate,Gp Practice Solutions Ltd,4953856,30000,Optional requirement only,0
Department of Health,Imperial College Healthcare NHS Trust,1/18/2024,Professional Services,Rd Surgery & Cancer Division,London Core Laboratory Ltd (Lcl),4953891,40800,Optional requirement only,0
Department of Health,Imperial College Healthcare NHS Trust,1/18/2024,Sewerage,Estates Directorate,Castle Water Ltd,4954295,32854.74,Optional requirement only,0
Department of Health,Imperial College Healthcare NHS Trust,1/18/2024,Water,Estates Directorate,Castle Water Ltd,4954295,65196.02,Optional requirement only,0
Department of Health,Imperial College Healthcare NHS Trust,1/23/2024,Clinical Managed Service Contr,Pathology,The Hillingdon Hospital Nhs Foundation Trust,59842,245286,Optional requirement only,0
Department of Health,Imperial College Healthcare NHS Trust,1/23/2024,Computer Maintenance,Div Of Women Cardiac Clin Sup & Sexual Health Serv,Xerox (Uk) Ltd,4953830,42264,Optional requirement only,0
Department of Health,Imperial College Healthcare NHS Trust,1/23/2024,Computer Software/License,Human Resources,Teams And Leadership Ltd,4950299,54000,Optional requirement only,0
Department of Health,Imperial College Healthcare NHS Trust,1/23/2024,Cy Auc -Addns-Bd Purchased,Capital Summary,Wb Power Services Ltd,4891599,1001876.4,Optional requirement only,0
Department of Health,Imperial College Healthcare NHS Trust,1/23/2024,Drugs Pbr Excluded,"Div Of Surg, Cardiov & Cancer",Healthcare At Home Ltd,4953912,26399.7,Optional requirement only,0
Department of Health,Imperial College Healthcare NHS Trust,1/23/2024,Engineering Contracts,Rd Surgery & Cancer Division,Accenture (Uk) Ltd,4952081,48752.4,Optional requirement only,0
Department of Health,Imperial College Healthcare NHS Trust,1/23/2024,Isotopes,Div Of Women Cardiac Clin Sup & Sexual Health Serv,Curium Pharma Uk Ltd,4944010,57510,Optional requirement only,0
Department of Health,Imperial College Healthcare NHS Trust,1/23/2024,Items Pending Investigation,Ichnt Balance Sheet,Chelsea And  Westminster Hospital Nhs Ft,4906657,336987.65,Optional requirement only,0
Department of Health,Imperial College Healthcare NHS Trust,1/23/2024,Jac - Stock,Balance Sheet St Marys,Roche Products Ltd,4957481,102600,Optional requirement only,Stock
Department of Health,Imperial College Healthcare NHS Trust,1/23/2024,Laboratory Equipment,Pathology,Cambridge Life Sciences Ltd,59412,33984,Optional requirement only,0
Department of Health,Imperial College Healthcare NHS Trust,1/23/2024,Laboratory Equipment,Pathology,Cambridge Life Sciences Ltd,59414,30940,Optional requirement only,0
Department of Health,Imperial College Healthcare NHS Trust,1/23/2024,Nhs Pay Recharge In: Other,Information & Comms Technology,Imperial College Health Partners Ltd,4930317,190000,Optional requirement only,0
Department of Health,Imperial College Healthcare NHS Trust,1/23/2024,Non-Nhs Pay Rechge In Clerical,"Communications, Engagement And Experience",Food Standards Agency,4952204,41077.31,Optional requirement only,0
Department of Health,Imperial College Healthcare NHS Trust,1/23/2024,Professional Services,Information & Comms Technology,Hunter Healthcare Resourcing Ltd,4949979,113160,Optional requirement only,0
Department of Health,Imperial College Healthcare NHS Trust,1/23/2024,Prostheses,Private Patients Directorate,Boston Scientific Ltd,4819975,38266.12,Optional requirement only,0
Department of Health,Imperial College Healthcare NHS Trust,1/23/2024,Prostheses,Private Patients Directorate,Boston Scientific Ltd,4820060,38266.12,Optional requirement only,0
Department of Health,Imperial College Healthcare NHS Trust,1/23/2024,Purch Hcare Independent Sector,Div Of Med & Integrated Care,Mimet House,4957963,71200.6,Optional requirement only,0
Department of Health,Imperial College Healthcare NHS Trust,1/23/2024,Services Received - Nhsts,Div Of Women Cardiac Clin Sup & Sexual Health Serv,Bham Womens & Childrens Nhs Ft,4215354,28512.35,Optional requirement only,0
Department of Health,Imperial College Healthcare NHS Trust,1/25/2024,Clinical Managed Service Contr,Pathology,Abbott Laboratories Ltd,60858,419416.57,Optional requirement only,0
Department of Health,Imperial College Healthcare NHS Trust,1/25/2024,Clinical Managed Service Contr,Pathology,Abbott Laboratories Ltd,60859,492245.48,Optional requirement only,0
Department of Health,Imperial College Healthcare NHS Trust,1/25/2024,Clinical Managed Service Contr,Pathology,Abbott Laboratories Ltd,60860,332905.34,Optional requirement only,0
Department of Health,Imperial College Healthcare NHS Trust,1/25/2024,Clinical Managed Service Contr,Pathology,Abbott Laboratories Ltd,60861,73078.94,Optional requirement only,0
Department of Health,Imperial College Healthcare NHS Trust,1/25/2024,Clinical Managed Service Contr,Pathology,Abbott Laboratories Ltd,60862,196276.18,Optional requirement only,0
Department of Health,Imperial College Healthcare NHS Trust,1/25/2024,Clinical Managed Service Contr,Pathology,Abbott Laboratories Ltd,60863,494385.1,Optional requirement only,0
Department of Health,Imperial College Healthcare NHS Trust,1/25/2024,Clinical Managed Service Contr,Pathology,Abbott Laboratories Ltd,60923,370987.4,Optional requirement only,0
Department of Health,Imperial College Healthcare NHS Trust,1/25/2024,Computer Software/License,Information & Comms Technology,Oracle Corporation Uk Ltd,4940055,47088.66,Optional requirement only,0
Department of Health,Imperial College Healthcare NHS Trust,1/25/2024,Computer Software/License,Information & Comms Technology,Oracle Corporation Uk Ltd,4940056,62784.86,Optional requirement only,0
Department of Health,Imperial College Healthcare NHS Trust,1/25/2024,Drugs Pbr Excluded,"Div Of Surg, Cardiov & Cancer",Healthcare At Home Ltd,4957960,26399.7,Optional requirement only,0
Department of Health,Imperial College Healthcare NHS Trust,1/25/2024,Equip Maint Contracts,Estates Directorate,Intercept Med Ltd,4934658,239076,Optional requirement only,0
Department of Health,Imperial College Healthcare NHS Trust,1/25/2024,Ic Pay Recharge In: Med,"Div Of Surg, Cardiov & Cancer",Imperial College London,4838113,115028.57,Optional requirement only,0
Department of Health,Imperial College Healthcare NHS Trust,1/25/2024,Jac - Stock,Balance Sheet St Marys,Alloga Uk Ltd,4959557,81360,Optional requirement only,Stock
Department of Health,Imperial College Healthcare NHS Trust,1/25/2024,Jac - Stock,Balance Sheet St Marys,Alloga Uk Ltd,4960836,81360,Optional requirement only,Stock
Department of Health,Imperial College Healthcare NHS Trust,1/25/2024,Jac - Stock,Balance Sheet St Marys,Bayer Plc,4958680,68890.43,Optional requirement only,Stock
Department of Health,Imperial College Healthcare NHS Trust,1/25/2024,Jac - Stock,Balance Sheet St Marys,Bayer Plc,4958681,50185.08,Optional requirement only,Stock
Department of Health,Imperial College Healthcare NHS Trust,1/25/2024,Jac - Stock,Balance Sheet St Marys,Bayer Plc,4958865,57028.5,Optional requirement only,Stock
Department of Health,Imperial College Healthcare NHS Trust,1/25/2024,Jac - Stock,Balance Sheet St Marys,Bms Pharmaceuticals Ltd (0034),4960912,33169.44,Optional requirement only,Stock
Department of Health,Imperial College Healthcare NHS Trust,1/25/2024,Jac - Stock,Balance Sheet St Marys,Qualasept Ltd,4958745,55803.84,Optional requirement only,Stock
Department of Health,Imperial College Healthcare NHS Trust,1/25/2024,Jac - Stock,Balance Sheet St Marys,Qualasept Ltd,4959602,55803.84,Optional requirement only,Stock
Department of Health,Imperial College Healthcare NHS Trust,1/25/2024,Lease Charges,Information & Comms Technology,Xerox (Uk) Ltd,4947929,204238.88,Optional requirement only,0
Department of Health,Imperial College Healthcare NHS Trust,1/25/2024,Med & Surg Equip Leases,"Div Of Surg, Cardiov & Cancer",Intuitive Surgical Ltd,4887921,34248,Optional requirement only,0
Department of Health,Imperial College Healthcare NHS Trust,1/25/2024,Med & Surg Equip Leases,"Div Of Surg, Cardiov & Cancer",Intuitive Surgical Ltd,4910416,34248,Optional requirement only,0
Department of Health,Imperial College Healthcare NHS Trust,1/25/2024,Med & Surg Equip Leases,"Div Of Surg, Cardiov & Cancer",Intuitive Surgical Ltd,4927819,34248,Optional requirement only,0
Department of Health,Imperial College Healthcare NHS Trust,1/25/2024,Med & Surg Maint Contract,Estates Directorate,Ge Medical Systems Limited,4955967,431740.8,Optional requirement only,0
Department of Health,Imperial College Healthcare NHS Trust,1/25/2024,Other Research Exp - Non-Pay,Rd Medical Directorate,Central & North West London Nhs Ft,4953905,129929,Optional requirement only,0
Department of Health,Imperial College Healthcare NHS Trust,1/25/2024,Other Research Exp - Non-Pay,Rd Medical Directorate,London North West Univ Healthcare Nhs Trust,4951793,460355,Optional requirement only,0
Department of Health,Imperial College Healthcare NHS Trust,1/25/2024,Other Research Exp - Pay,Rd Surgery & Cancer Division,Imperial College London,4957883,32500,Optional requirement only,0
Department of Health,Imperial College Healthcare NHS Trust,1/26/2024,Rates,Estates Directorate,City Of Westminster,4961343,197372,Optional requirement only,0
Department of Health,Imperial College Healthcare NHS Trust,1/26/2024,Rates,Estates Directorate,London Borough Hammersmith & Fulham,4960316,185313,Optional requirement only,0
Department of Health,Imperial College Healthcare NHS Trust,1/26/2024,Rates,Estates Directorate,London Borough Hammersmith & Fulham,4960317,165363,Optional requirement only,0
,,,,,,Sum:,59838752.91,,0
,,,,,Count:,245,,,0
